Cogmind - Beta 13 @@@ ROGUE MODE // 2024.03.31 @ 12:21:01 Player: Helta Result: Destroyed by Y-45 Defender with Heavy Assault Rifle Performance ------------- Evolutions (1) 500 Regions Visited (2) 400 Robots Destroyed (22) 110 Value Destroyed (535) 535 Prototype IDs (1) 20 Alien Tech Used (0) 0 Bonus (0) 0 TOTAL SCORE: 1565 Bonus ------- None Cogmind --------- Core Integrity 0/400 Matter 159/300 Energy 100/100 System Corruption 7% Temperature Cool (0) Movement Core (50) Location -9/Materials Parts ------- > --- POWER (1) -------- (None) > --- PROPULSION (2) --- (None) > --- UTILITY (4) ------ (None) > --- WEAPON (2) ------- Mining Claw > --- INVENTORY (5) ---- Cooled Ion Engine Flight Unit Salvage Targeting Computer Grenade Launcher Peak State ------------ > --- POWER ------------ Ion Engine > --- PROPULSION ------- Aluminum Leg Aluminum Leg > --- UTILITY ---------- Heat Sink Terrain Scanner > --- WEAPON ----------- Grenade Launcher Mining Claw > --- INVENTORY -------- Light Ion Engine Aluminum Leg Assault Rifle Assault Rifle [Rating: 7] Favorites ----------- Power Ion Engine Engine Ion Engine Propulsion Aluminum Leg Leg Aluminum Leg Flight Unit Flight Unit Utility Terrain Scanner Device Terrain Scanner Storage Large Matter Pod Weapon Mining Claw Ballistic Gun Assault Rifle Launcher Grenade Launcher Slashing Weapon Mining Claw Build | -11 -10 -9 ------- Run | Yrd Mat Mat Slots Evolved 2 | . . 2 Power . | . . . Propulsion . | . . . Utility 2 | . . 2 Weapon . | . . . Parts Attached 23 | 8 8 7 Power 5 | 2 1 2 Engine 5 | 2 1 2 Core . | . . . Reactor . | . . . Propulsion 8 | 3 2 3 Treads . | . . . Leg 5 | 3 2 . Wheel . | . . . Hover . | . . . Flight 3 | . . 3 Utility 3 | 1 2 . Device 2 | 1 1 . Storage 1 | . 1 . Processor . | . . . Hackware . | . . . Protection . | . . . Artifact . | . . . Weapon 7 | 2 3 2 Energy Gun . | . . . Energy Cannon . | . . . Ballistic Gun 3 | 2 . 1 Ballistic Cannon . | . . . Launcher 3 | . 2 1 Special Weapon . | . . . Impact Weapon . | . . . Slashing Weapon 1 | . 1 . Piercing Weapon . | . . . Special Melee Weapon . | . . . Unidentified Prototypes 1 | . . 1 Parts Lost 8 | . 2 6 Power 1 | . . 1 Propulsion 4 | . 1 3 Utility 1 | . . 1 Weapon 2 | . 1 1 Highest Loss Streak 3 | . 1 3 To Critical Strikes . | . . . Average Slot Usage (%) 74 | . 89 45 Engine 10 | . 13 5 Leg 19 | . 27 4 Flight 3 | . . 10 Device 13 | . 16 8 Storage 3 | . 3 2 Ballistic Gun 4 | . 6 . Launcher 6 | . 8 2 Slashing Weapon 11 | . 12 11 Naked Turns . | . . . Heaviest Build 14 | 10 14 14 Greatest Support 20 | 20 20 20 Greatest Overweight (x) 2 | . 1 2 Average Overweight (x) . | . . . Largest Inventory Capacity 5 | 5 5 5 Average Capacity 5 | 5 5 5 Most Carried 5 | 4 5 5 Average Carried 3 | . 4 4 Final Capacity 5 | 5 5 5 Final Carried 4 | 3 4 4 Class Distribution -------------------- 100% | Mutant Dominant Class ---------------- Mutant | -10/Materials Mutant | -9/Materials Resources | -11 -10 -9 ----------- Run | Yrd Mat Mat Matter Collected 472 | 268 196 8 Remotely . | . . . Salvage Created 403 | 31 309 63 Parts 50 | 4 28 18 Haulers Intercepted 1 | . 1 . Recyclers Shooed . | . . . Parts Field Recycled . | . . . Retrieved Matter . | . . . Parts Self-Destructed . | . . . Prevented . | . . . Kills | -11 -10 -9 ------- Run | Yrd Mat Mat Combat Hostiles Destroyed 20 | 1 10 9 Melee 3 | . 2 1 Guns 2 | 1 . 1 AOE 15 | . 8 7 Classes Destroyed 4 | 1 1 2 Hauler 1 | . 1 . Watcher 1 | . . 1 Swarmer 9 | . . 9 Grunt 11 | 1 10 . Best Kill Streak 5 | 1 4 5 Combat Bots Only 5 | 1 4 5 Max Kills in Single Turn 4 | 1 1 4 Gunslinging . | . . . Exploded 4 | . 1 4 Melee 1 | . 1 1 Uniques/NPCs Destroyed . | . . . Combat | -11 -10 -9 -------- Run | Yrd Mat Mat Hostile Shots Fired 167 | 4 72 91 Missed 67 | 1 35 31 Damage Taken 1276 | 33 531 712 Core 542 | 11 129 402 Absorbed by Shields . | . . . Regen/Repaired (Parts) 53 | . 53 . Core Remaining (%) 69 | 95 44 . Volleys Fired 26 | 3 15 8 Largest 2 | 2 1 1 Hottest 40 | 40 30 36 Shots Fired 29 | 6 15 8 Gun 10 | 6 . 4 Cannon . | . . . Launcher 19 | . 15 4 Special . | . . . Kinetic 10 | 6 . 4 Thermal . | . . . Explosive 19 | . 15 4 Electromagnetic . | . . . Robot Hit Streak 5 | 3 5 3 Robot Miss Streak 2 | 2 . 2 Penetration Max . | . . . Secondary Targets . | . . . Shots Hit Robots 19 | 4 11 4 Core Hits 34 | 3 19 12 Critical Kills . | . . . Critical Parts Destroyed . | . . . Critical Strikes . | . . . Melee Attacks 62 | . 16 46 Impact . | . . . Slashing 62 | . 16 46 Piercing . | . . . Sneak Attacks . | . . . Combat Hostiles . | . . . Follow-up Attacks . | . . . Damage Inflicted 1278 | 59 752 467 Guns 89 | 49 . 40 Cannons . | . . . Explosions 949 | . 545 404 Melee 230 | . 207 23 Ramming 10 | 10 . . Kinetic 89 | 49 . 40 Thermal . | . . . Explosive 949 | . 545 404 Electromagnetic . | . . . Impact . | . . . Slashing 230 | . 207 23 Piercing . | . . . Highest Corruption 7 | . . 7 Average Corruption 6 | . . 6 Corruption Purged . | . . . Corruption Blocked . | . . . Effects 5 | . . 5 Message Errors 3 | . . 3 Heat Flow Errors 2 | . . 2 Overload Shots . | . . . Overflow Damage 8 | . 7 1 Projectiles . | . . . Explosions 8 | . 7 1 Melee . | . . . Knockbacks . | . . . Impact . | . . . Kinetic . | . . . Secondary . | . . . Self-Inflicted Damage 107 | . 75 32 Shots 4 | . 3 1 Rammed . | . . . Targets Rammed 4 | 4 . . Kicked 4 | 4 . . Crushed . | . . . Highest Temperature 254 | . 1 254 Average Temperature 86 | . 1 109 Received Heat Transfer 393 | 18 273 102 Siege Activations . | . . . Robots Corrupted . | . . . Combat Hostiles . | . . . Parts Fried . | . . . Impact Corruptions . | . . . Robots Melted . | . . . Combat Hostiles . | . . . Parts Melted . | . . . Heat Transferred . | . . . Parts Sabotaged . | . . . Parts Stolen . | . . . Parts Stripped . | . . . Power Chain Reactions . | . . . Alert | -11 -10 -9 ------- Run | Yrd Mat Mat Peak Influence 384 | 20 200 384 Initial 63 | . 13 63 Average 114 | 4 77 233 Maximum Alert Level 1 | . 1 1 Low Security (%) 68 | 100 90 11 Level 1 31 | . 9 88 Level 2 . | . . . Level 3 . | . . . Level 4 . | . . . Level 5 . | . . . High Security . | . . . Max Security . | . . . Squads Dispatched 3 | . 2 1 Investigation 1 | . 1 . Extermination . | . . . Reinforcement 2 | . 1 1 Assault . | . . . Garrison . | . . . Intercept . | . . . Searches Triggered . | . . . Construction Impeded . | . . . Haulers Reinforced . | . . . Active Scanning Responses . | . . . Cargo Convoy Interrupts . | . . . Stealth | -11 -10 -9 --------- Run | Yrd Mat Mat Distress Signals 3 | . 2 1 Communications Jammed . | . . . Distress Signals . | . . . Times Spotted 30 | 1 12 17 Peak Tracking Total 10 | 1 6 10 Tactical Retreats 2 | . 1 1 Traps | -11 -10 -9 ------- Run | Yrd Mat Mat Traps Triggered 1 | . 1 . Indirectly . | . . . Trap Hack Attempts . | . . . Triggered . | . . . Disarmed . | . . . Reprogrammed . | . . . Reused . | . . . Traps Extracted . | . . . Installed . | . . . Triggered . | . . . Machines | -11 -10 -9 ---------- Run | Yrd Mat Mat Machines Disabled 4 | . 3 1 Max in Single Turn 2 | . 2 1 Machines Repaired . | . . . Machines Dismantled . | . . . Machines Sabotaged . | . . . Overloaded Fab Kills . | . . . Hacking | -11 -10 -9 --------- Run | Yrd Mat Mat Machines Accessed 3 | . 1 2 Terminals 1 | . . 1 Fabricators . | . . . Repair Stations 1 | . 1 . Recycling Units 1 | . . 1 Scanalyzers . | . . . Garrison Access . | . . . Total Hacks 12 | . 3 9 Successful 9 | . 3 6 Failed 3 | . . 3 Catastrophic . | . . . Database Lockouts . | . . . Manual . | . . . Terminals 6 | . . 6 Fabricators . | . . . Repair Stations 3 | . 3 . Recycling Units 3 | . . 3 Scanalyzers . | . . . Garrison Access . | . . . Terminal Hacks 4 | . . 4 Record 1 | . . 1 Emergency Access Points 1 | . . 1 Alert Level 1 | . . 1 Maintenance Status 1 | . . 1 Fabricator Hacks . | . . . Repair Station Hacks 3 | . 3 . Scan Component 2 | . 2 . Repair 1 | . 1 . Recycling Unit Hacks 2 | . . 2 Recycle Component 1 | . . 1 Retrieve Matter 1 | . . 1 Scanalyzer . | . . . Garrison Access Hacks . | . . . Unauthorized Hacks . | . . . Terminals . | . . . Fabricators . | . . . Repair Stations . | . . . Recycling Units . | . . . Scanalyzers . | . . . Garrison Access . | . . . Data Cores Recovered . | . . . Used . | . . . Hacking Detections 3 | . 1 2 Full Trace Events . | . . . Feedback Events . | . . . Feedback Blocked . | . . . Robot Schematics Acquired . | . . . Robots Built . | . . . Authchips . | . . . Time . | . . . Total Robot Build Rating . | . . . Part Schematics Acquired . | . . . Parts Built . | . . . Authchips . | . . . Time . | . . . Total Part Build Rating . | . . . Parts Repaired 1 | . 1 . Time 26 | . 26 . Parts Recycled 1 | . . 1 Recycled Matter . | . . . Retrieved Matter . | . . . Retrieved Components . | . . . Parts Scanalyzed . | . . . Part Schematics Acquired . | . . . Parts Damaged . | . . . Bothacking | -11 -10 -9 ------------ Run | Yrd Mat Mat Used RIF Installer . | . . . Robots Hacked . | . . . Non-combat . | . . . Combat . | . . . Robot Hacks Applied . | . . . Relay Couplers Released . | . . . Fabnet Peak Effective % . | . . . Robots Rewired . | . . . Allies Hacked . | . . . Hacks Repelled . | . . . Allies | -11 -10 -9 -------- Run | Yrd Mat Mat Total Allies . | . . . Largest Group . | . . . Highest-Rated Group . | . . . Highest-Rated Ally . | . . . Total Orders . | . . . Ally Attacks . | . . . Total Damage . | . . . Kills . | . . . Allies Corrupted . | . . . Allies Melted . | . . . Intel | -11 -10 -9 ------- Run | Yrd Mat Mat Robot Analysis Total . | . . . Derelict Logs Recovered . | . . . Drone Launches . | . . . Drone Recoveries . | . . . Exploration | -11 -10 -9 ------------- Run | Yrd Mat Mat Turns Passed 865 | 116 490 259 Spaces Moved 554 | 82 294 178 Core 26 | 17 . 9 Treads . | . . . Legs 379 | 65 294 20 Wheels . | . . . Hover . | . . . Flight 149 | . . 149 Fastest Speed 37 | 50 120 37 Average Speed 94 | 105 120 48 Slowest Speed 190 | 120 190 150 Overloaded Moves . | . . . Propulsion Burnouts . | . . . Robots Hopped . | . . . Cave-ins Triggered 2 | . . 2 Exploration Rate (%) 26 | 7 47 26 Regions Visited 2 Branch Regions . Pre-discovered Areas . | . . . Known Exits Taken . | . . . Unknown Exits Taken 2 | 1 1 . Scrap Searched . | . . . Spaces Dug 40 | . 4 36 Terrain Destroyed 111 | . 46 65 Melee 38 | . 2 36 Projectile . | . . . AOE 73 | . 44 29 Terrain Rammed . | . . . Walls Destroyed . | . . . Machines Disabled . | . . . Actions | -11 -10 -9 --------- Run | Yrd Mat Mat Total 738 | 101 383 254 Wait 40 | . 40 . Move 550 | 81 293 176 Hop . | . . . Pick Up 21 | 5 8 8 Fast Attach 4 | 4 . . Attach 9 | 2 4 3 Detach . | . . . Swap 10 | 2 4 4 Drop 10 | . 3 7 Fire 26 | 3 15 8 Melee 62 | . 16 46 Ram . | . . . Kick 4 | 4 . . Crush . | . . . Escape Stasis 2 | . . 2 Rewire . | . . . Trap . | . . . Miscellaneous . | . . . Route ------- -11/Scrapyard -10/Materials -9/Materials History --------- Turn | Location | Event 2 | -11/Scrapyard | Met Revision 17 80 | -11/Scrapyard | Discovered new exit (range 8) 117 | -11/Scrapyard | Entered Materials 324 | -10/Materials | Build established: Mutant 341 | -10/Materials | Repaired Ion Engine 439 | -10/Materials | Discovered new exit (range 16) 531 | -10/Materials | Core integrity fell below 50% 607 | -10/Materials | Entered another Materials area 607 | -9/Materials | Evolved 2 slots: Utility x2 734 | -9/Materials | Crushed by falling debris 745 | -9/Materials | Crushed by falling debris 776 | -9/Materials | Lost 3 parts (1p2n) 831 | -9/Materials | Core integrity fell below 50% 862 | -9/Materials | Core integrity fell below 20% 866 | -9/Materials | Destroyed by Y-45 Defender with Heavy Assault Rifle Last Messages --------------- 00814_ T-07 Excavator is excavating. 00818_ Flight Unit destroyed. 00818_ ALERT: Hostiles spotted, dispatching reinforcements to Terminal M009. 00826_ S-10 Pest destroyed. 00828_ QTX NMKYXYT29Z>YV2IPZ4 00843_ /AKM,U%DE1U YK%GD%&T 00843_ Acquired Missile Launcher. 00845_ S-10 Pest destroyed. 00845_ Destroyed Flight Unit. 00845_ S-10 Pest destroyed. 00845_ Destroyed Flight Unit. 00845_ S-10 Pest destroyed. 00848_ Acquired 8 matter. 00855_ The unstable cave ceiling collapses. 00855_ U-05 Engineer builds a Wall. 00861_ R-06 Scavenger collects Lgt. Assault Rifle. 00862_ U-05 Engineer builds a Wall. 00863_ Missile Launcher destroyed. 00864_ R-06 Scavenger collects Flight Unit. 00865_ U-05 Engineer builds a Wall. Map ----- +----------------------------------------------------+ | ??????????????????????????????# ##????????????? | | ???????????????????#??????#?#?##"##########???? | | ??????????????????#????????????## #???? | | ????????????????????????????????# #???? | | ????????????????????????????????# #???? | | ????????????????????????????????# #???? | | ???????????????????????########## #???? | | ???????????????????????# " #?#?? | | ???????????????????????# ]][ # #???? | | ???????????????????????# ][ # ##??? | | ???????????????????????# ][ ######/####?#?? | | ???????????????????????# #???? ?????? | | ???????????????????????# """"" #???? ???? | | ???????????????????????# """"" #??? ? | | ???????????????????????#] """"" #??? ? | | ???????????????????????# #??# #####" | | ???????????????????????######+###??## ##????? | | ????????????????????????##= #???# #?????? | | ????????????????????????#=# +?????? | | ???????????????????????##%# #?????? | | ???????????????????????#### #?????? | | ?????????????????????###### ## ### ##?????? | | ?????????????????????# =*### ##?##?? ???????? | | ???????????????????### %= # #?????? ???????? | | ???????????????????#]]/s%g # #?????? ???????? | | ???????????????????#] @*[g # #??????????????? | | ???????????????????# u# #??????????????? | | ???????????????????# #rY #?????????????? | | ?????????????????? %u #?????????????? | | ????????????????? = T #?????????????? | | ????????????????# ! #?????????????? | | ????????????????# o####+## #?????????????? | | ????????????????# ???????######?????????????? | | ????????????????+ ??????????????????????????? | | ????????????????# ??????????????????????????? | | ????????????????# ???????????????????????????? | | ????????????????# ???????????????????????????? | | ????????????????# ???????????????????????????? | | ????????????????# ???????????????????????????? | | ????????????????? ????????????????????????????? | | ??????????????????????????????????????????????? | | ??????????????????????????????????????????????? | | ??????????????????????????????????????????????? | | ??????????????????????????????????????????????? | | ??????????????????????????????????????????????? | | ??????????????????????????????????????????????? | | ??????????????????????????????????????????????? | | ??????????????????????????????????????????????? | | ??????????????????????????????????????????????? | | ??????????????????????????????????????????????? | +----------------------------------------------------+ Best States ------------- Heat Dissipation 35 Energy Generation 10 Energy Capacity 250 Matter Stores 300 Matter Capacity 450 Sight Range 16 Terrain Scan Range 14 Terrain Scan Density 10 Evasion (%) 62 Item Schematics ----------------- None Robot Schematics ------------------ None Fabricated ------------ Nothing Alien Tech Used ----------------- None Achievements -------------- Part-time Excavator Unlikely Earthworm Challenges ------------ None Game ------ Seed AntigravHeartAirjet Manual? 0 Play Time 00:17:28 Cumulative 1.0 hours Start 2024.03.31 @ 12:05:53 End 2024.03.31 @ 12:21:01 Sessions 1 Manual Loads 0 Difficulty Rogue Special Mode None Game No. 2 Rogue 2 Adventurer 0 Explorer 0 Win Type - Total 0 Types 0/0/0/0/0/0/0/0/0 Lore% 1 Gallery% 3 Achievement% 4 Wizard Run 0 Options --------- Layout 1 ASCII 0 Keyboard 0 Movement Arrows Keybinds 0 Fullscreen 1 Font 32/SmallcapsGlow Map View 130x35 Zoom Use 0% Tactical HUD 1 Map Filters NONE Filters NONE Steam 1 RUN: e1a6b905-6f05-46f6-a7f3-75f6e8a540c7